[Event "CAN-op"]
[Site "Ottawa CAN"]
[Date "2026.07.17"]
[Round "9.5"]
[White "Samsonkin, Artiom"]
[Black "Cummings, David"]
[Result "1-0"]
[ECO "C43"]
[WhiteElo "2361"]
[BlackElo "2233"]
[WhiteFideId "-1"]
[BlackFideId "-1"]
[PlyCount "111"]
[GameId "2332995607404349"]
[EventDate "2026.07.11"]
[EventType "swiss"]
[EventRounds "9"]
[EventCountry "CAN"]
[TimeControl "5400+30"]
[WhiteClock "0:01:47"]
[BlackClock "0:01:08"]

1. e4 {[%emt 0:00:02.94]} e5 {[%emt 0:00:13.94]} 2. Nf3 {[%emt 0:00:09]} Nf6 {[%emt 0:00:06]} 3. d4 {[%emt 0:00:05]} Nxe4 {[%emt 0:00:11]} 4. Bd3 {[%emt 0:00:05]} d5 {[%emt 0:00:22]} 5. dxe5 {[%emt 0:00:09]} Nc5 {[%emt 0:01:00]} 6. Be2 {[%emt 0:01:31]} Ne6 {[%emt 0:00:39]} 7. O-O {[%emt 0:01:05]} Be7 {[%emt 0:00:33]} 8. Re1 {[%emt 0:08:02]} O-O {[%emt 0:01:00]} 9. Nbd2 {[%emt 0:01:55]} c5 {[%emt 0:02:11]} 10. Nf1 {[%emt 0:01:05]} Nc6 {[%emt 0:00:38]} 11. Ng3 {[%emt 0:04:30]} b6 {[%emt 0:05:08]} 12. Nf5 {[%emt 0:01:50]} Bb7 {[%emt 0:00:21]} 13. c3 {[%emt 0:00:27]} d4 {[%emt 0:05:46]} 14. Bd3 {[%emt 0:09:01]} Re8 {[%emt 0:26:37.10]} 15. Qe2 {[%emt 0:07:01]} dxc3 {[%emt 0:05:33]} 16. bxc3 {[%emt 0:00:14]} Na5 {[%emt 0:01:47]} 17. Bb5 {[%emt 0:10:23.10]} Bc6 {[%emt 0:00:46]} 18. Bxc6 {[%emt 0:00:12]} Nxc6 {[%emt 0:00:04]} 19. Qe4 {[%emt 0:04:00]} Qc7 {[%emt 0:03:46]} 20. Ne3 {[%emt 0:16:24]} Rad8 {[%emt 0:12:20]} 21. Nd5 {[%emt 0:00:23]} Qc8 {[%emt 0:01:00]} 22. Be3 {[%emt 0:01:30]} c4 {[%emt 0:07:26]} 23. Qxc4 {[%emt 0:01:36]} Ncd4 {[%emt 0:00:45]} 24. Qxc8 {[%emt 0:02:12]} Nxf3+ {[%emt 0:00:05]} 25. gxf3 {[%emt 0:00:03]} Rxc8 {[%emt 0:00:05]} 26. a4 {[%emt 0:01:56]} Bc5 {[%emt 0:02:48]} 27. f4 {[%emt 0:06:03]} Bxe3 {[%emt 0:04:35]} 28. fxe3 {[%emt 0:00:19]} Rc4 {[%emt 0:00:26]} 29. Red1 {[%emt 0:01:12]} Kf8 {[%emt 0:02:45]} 30. a5 {[%emt 0:02:54]} b5 {[%emt 0:04:23]} 31. Kf2 {[%emt 0:04:21]} Rd8 {[%emt 0:01:49]} 32. Rab1 {[%emt 0:03:01]} Ra4 {[%emt 0:01:43]} 33. Rxb5 {[%emt 0:03:17]} Nc7 {[%emt 0:01:43]} 34. Rc5 {[%emt 0:00:09]} Ne6 {[%emt 0:00:26]} 35. Rc6 {[%emt 0:01:37]} Rxa5 {[%emt 0:00:53]} 36. c4 {[%emt 0:00:30]} Rc5 {[%emt 0:03:12]} 37. Rxc5 {[%emt 0:00:34]} Nxc5 {[%emt 0:00:01]} 38. Ra1 {[%emt 0:01:06]} a6 {[%emt 0:00:28]} 39. Ra5 {[%emt 0:03:17]} Rc8 {[%emt 0:00:07]} 40. Kf3 {[%emt 0:00:33]} g6 {[%emt 0:01:08]} 41. Nf6 {[%emt 0:01:02]} Kg7 {[%emt 0:00:56]} 42. Ke2 {[%emt 0:00:57]} Rc6 {[%emt 0:01:41]} 43. h4 {[%emt 0:00:20]} h5 {[%emt 0:01:43]} 44. Kd1 {[%emt 0:02:22]} Nb7 {[%emt 0:01:02]} 45. Ra4 {[%emt 0:00:15]} a5 {[%emt 0:00:48]} 46. Kc2 {[%emt 0:00:39]} Kf8 {[%emt 0:00:11]} 47. Kc3 {[%emt 0:00:19]} Ke7 {[%emt 0:00:19]} 48. Ra2 {[%emt 0:01:02]} Ke6 {[%emt 0:00:25]} 49. e4 {[%emt 0:01:24]} Rb6 {[%emt 0:00:18]} 50. Ra1 {[%emt 0:00:36]} Ra6 {[%emt 0:01:56]} 51. Rb1 {[%emt 0:00:32]} Nc5 {[%emt 0:00:25]} 52. Rb5 {[%emt 0:01:07]} Nd7 {[%emt 0:00:50]} 53. f5+ {[%emt 0:00:41]} gxf5 {[%emt 0:00:09]} 54. exf5+ {[%emt 0:00:03]} Kxf5 {[%emt 0:01:16]} 55. Nxd7 {[%emt 0:00:07]} Kg4 {[%emt 0:00:03]} 56. c5 {[%emt 0:00:33]} 1-0

[Event "CAN-op"]
[Site "Ottawa CAN"]
[Date "2026.07.17"]
[Round "9.7"]
[White "Stefansson, Vignir Vatnar"]
[Black "Nasuta, Grzegarz"]
[Result "1/2-1/2"]
[ECO "E01"]
[WhiteElo "2540"]
[BlackElo "2495"]
[WhiteFideId "-1"]
[BlackFideId "-1"]
[PlyCount "50"]
[GameId "2332995607408448"]
[EventDate "2026.07.11"]
[EventType "swiss"]
[EventRounds "9"]
[EventCountry "CAN"]
[TimeControl "5400+30"]
[WhiteClock "0:41:23"]
[BlackClock "0:15:03"]

1. Nf3 {[%emt 0:13:04.94]} Nf6 {[%emt 0:00:03.94]} 2. c4 {[%emt 0:00:06]} c5 {[%emt 0:00:05]} 3. d4 {[%emt 0:00:10]} cxd4 {[%emt 0:00:10]} 4. Nxd4 {[%emt 0:00:09]} e6 {[%emt 0:00:18]} 5. g3 {[%emt 0:00:09]} d5 {[%emt 0:00:31]} 6. Bg2 {[%emt 0:00:05]} e5 {[%emt 0:00:47]} 7. Nf3 {[%emt 0:00:33]} d4 {[%emt 0:00:06]} 8. O-O {[%emt 0:00:04]} Nc6 {[%emt 0:00:07]} 9. e3 {[%emt 0:00:04]} Be7 {[%emt 0:00:15]} 10. exd4 {[%emt 0:00:04]} exd4 {[%emt 0:00:11]} 11. b4 {[%emt 0:00:25]} Bxb4 {[%emt 0:09:30]} 12. Nxd4 {[%emt 0:00:11]} O-O {[%emt 0:03:38]} 13. Nxc6 {[%emt 0:12:33]} Qxd1 {[%emt 0:15:18]} 14. Rxd1 {[%emt 0:00:03]} bxc6 {[%emt 0:00:08]} 15. Ba3 {[%emt 0:08:27]} Rb8 {[%emt 0:07:05.10]} 16. Bxc6 {[%emt 0:01:01]} Be6 {[%emt 0:09:07]} 17. Rd4 {[%emt 0:12:32.10]} Rfc8 {[%emt 0:08:17]} 18. Bb5 {[%emt 0:00:15]} Ba5 {[%emt 0:06:40]} 19. Bd6 {[%emt 0:05:38]} Rxb5 {[%emt 0:03:04]} 20. cxb5 {[%emt 0:00:05]} Rc1+ {[%emt 0:00:05]} 21. Kg2 {[%emt 0:00:02]} Bb6 {[%emt 0:01:09]} 22. Rd3 {[%emt 0:03:50]} Bd5+ {[%emt 0:04:25]} 23. Kh3 {[%emt 0:01:36]} Be6+ {[%emt 0:01:08]} 24. Kg2 {[%emt 0:00:08]} Bd5+ {[%emt 0:02:11]} 25. Kh3 {[%emt 0:00:22]} Be6+ {[%emt 0:13:38]} 1/2-1/2